Workbook

Sheet Retirement
A1: The low-stress Retirement Calculator by freefincal.com
A2: Current monthly expenses that will persist in retirement | B2: 40000
A3: Annual expenses that will persist in retirement | B3: 40000
A4: Total average monthly expenses (annual/12) | B4: =((12*B2)+B3)/12 -> 43333.33333
A5: Inflation before retirement (%) | B5: 8
A6: Current age | B6: 35
A7: Age you wish to retire | B7: 60
A8: No of years you expect to live! | B8: 80
A9: Years to retirement | B9: =B7-B6 -> 25
A10: Monthly expenses in first year of retirement | B10: =B4*(1+B5/100)^B9 -> 296767.2585
A11: Years in retirement | B11: =B8-B7 -> 20
A12: Inflation during retirement (%) | B12: 9
A13: Post-tax average return from retirement corpus (%) | B13: 8
A14: For now set it to a low number
A15: Total Corpus required | B15: =PV((1+((B13/100)))/(1+(B12/100))-1,B11,-12*B10,,1) -> 77851401.2
A16: Post-tax return (used for current and future investments)
A17: Post-tax return expected from equity investments % | B17: 14
A18: Post-rax return expected from current taxable debt % | B18: 6
A19: Rate of return expected from current tax-free debt % | B19: 8
A20: Present Value of investments | C20: Estimated Value at the time of retirement
A21: Value of current equity invesments | B21: 100000 | C21: =(B21*(1+B17/100)^Retirement!$B$9) -> 2646191.581
A22: Value of current taxable debt investments (FD, debt fund etc.) | B22: 100000 | C22: =(B22*(1+B18/100)^Retirement!$B$9) -> 429187.072
A23: Value of current tax-free debt investments (EPF+PPF+LIC) | B23: 100000 | C23: =(B23*(1+B19/100)^Retirement!$B$9) -> 684847.5196
A24: Lump sum benefits expected at retirement | B24: 500000 | C24: =B24 -> 500000
A25: Current monthly mandatory EPF contribution | B25: 8000 | C25: =(12*(12%*B25+12%*B25+IF(12%*B25>1800,-1249.5,0))*((1+B27%+0.000001%)^B9-(1+B26%)^B9)/(0.000001%+B27%-B26%)) -> 2658908.687
A26: Annual increase in this contribution (be realistic) % | B26: 5
A27: Expected rate of return for EPF or NPS % | B27: 8
A28: Net Corpus to be accumulated (notice reduction) | B28: =Retirement!B15-SUM(C21:C25) -> 70932266.34
A31: You need to invest some amt each month to attain this corpus
A32: What percentage of this monthly investment would you:
A33: 1) allocate to equity % | B33: 70
A34: 2) allocate to taxable debt instruments % | B34: 10
A35: 3) allocate to tax-free debt instruments % | B35: =100-B33-B34 -> 20
A36: Annual increase in total monthly investment % | B36: 10
A37: Net rate of return (this is an approximation) % | B37: =((Retirement!B17*B33)+(Retirement!B18*B34)+(Retirement!B19*B35))/100 -> 12
A38: Monthly investment required | B38: =IF(Retirement!B28<0,0,IF(B36=B37,Retirement!B28/(12*Retirement!B9*(1+(B37/100))^Retirement!B9),Retirement!B28*((B37/100)-(B36/100))/(12*(1+(B37/100))*((1+(B37/100))^(Retirement!B9)-(1+(B36/100))^(Retirement!B9))))) -> 17120.4916
A39: Initial Monthly investment in
A40: Equity | B40: =B38*B33/100 -> 11984.34412
A41: Taxable Debt | B41: =B38*B34/100 -> 1712.04916
A42: Tax-free Debt | B42: =B38*B35/100 -> 3424.098319

Sheet Other goals
A1: Enter name of the goal for your reference | B1: Daughters education | D1: Sons education | F1: Daughters marriage | H1: Sons marriage | J1: Goal 5 | AA1: equity investing stops | AB1: 0 | AD1: 0 | AF1: 0 | AH1: 0 | AJ1: 0
A2: Years to goal (has to be before retirement)* | B2: 12 | D2: 14 | F2: 20 | H2: 22 | J2: 6 | AA2: max equity investing years | AB2: =B2-AB1 -> 12 | AD2: =D2-AD1 -> 14 | AF2: =F2-AF1 -> 20 | AH2: =H2-AH1 -> 22 | AJ2: =J2-AJ1 -> 6
A3: Present cost | B3: 2500000 | D3: 2500000 | F3: 1000000 | H3: 100000 | J3: 1000000 | AA3: * that is less than | AB3: =Retirement!B9 -> 25 | AD3: years
A4: inflation | B4: 0.1 | D4: 0.1 | F4: 0.1 | H4: 0.1 | J4: 0.1 | AB4: =IF(B2>=AB3,1,IF(D2>=AB3,1,IF(F2>=AB3,1,IF(H2>=AB3,1,IF(J2>=AB3,1,0))))) -> 0
A5: Post-tax return from equity instruments expected | B5: 0.12 | D5: 0.12 | F5: 0.12 | H5: 0.12 | J5: 0.12
A6: Post-tax return from debt instruments expected | B6: 0.07 | D6: 0.07 | F6: 0.07 | H6: 0.07 | J6: 0.07
A7: Equity allocation | B7: 0.6 | D7: 0.6 | F7: 0.6 | H7: 0.6 | J7: 0.6
A8: Debt allocation | B8: =1-B7 -> 0.4 | D8: =1-D7 -> 0.4 | F8: =1-F7 -> 0.4 | H8: =1-H7 -> 0.4 | J8: =1-J7 -> 0.4
A9: Net rate of return (post-tax) | B9: =(B7*B5)+(B8*B6) -> 0.1 | D9: =(D7*D5)+(D8*D6) -> 0.1 | F9: =(F7*F5)+(F8*F6) -> 0.1 | H9: =(H7*H5)+(H8*H6) -> 0.1 | J9: =(J7*J5)+(J8*J6) -> 0.1
A10: Amt invested so far in equity instruments | B10: 100000
A11: Amt invested so far in debt instruments | B11: 200000
A12: Rate of return expected from portfolio | B12: 0.12 | D12: 0.12 | F12: 0.12 | H12: 0.12 | J12: 0.12
A13: Future Cost | B13: =B3*(1+B4)^AB2 -> 7846070.942 | D13: =D3*(1+D4)^AD2 -> 9493745.84 | F13: =F3*(1+F4)^AF2 -> 6727499.949 | H13: =H3*(1+H4)^AH2 -> 814027.4939 | J13: =J3*(1+J4)^AJ2 -> 1771561
A14: RoI of current invest. | B14: 0.08 | D14: 0.08 | F14: 0.08 | H14: 0.08 | J14: 0.08
A15: Future value of curr. Inv. | B15: =B10*(1+B5)^ygoal1+B11*(1+B6)^ygoal1 -> 840035.917 | D15: =D10*(1+D5)^ygoal1+D11*(1+D6)^ygoal1 -> 0 | F15: =F10*(1+F5)^ygoal1+F11*(1+F6)^ygoal1 -> 0 | H15: =H10*(1+H5)^ygoal1+H11*(1+H6)^ygoal1 -> 0 | J15: =J10*(1+J5)^ygoal1+J11*(1+J6)^ygoal1 -> 0
A16: Annual inc. in monthly invest. % | B16: 0.1 | D16: 0.1 | F16: 0.1 | H16: 0.1 | J16: 0.1
A17: initial mon. invest. reqd. | B17: =IF(B12=B16,(B13-B15)/(12*AB2*(1+B12)^AB2),(B13-B15)*(B12-B16)/(12*(1+B12)*((1+B12)^(AB2)-(1+B16)^(AB2)))) -> 13762.36575 | D17: =IF(D12=D16,(D13-D15)/(12*AD2*(1+D12)^AD2),(D13-D15)*(D12-D16)/(12*(1+D12)*((1+D12)^(AD2)-(1+D16)^(AD2)))) -> 12965.69118 | F17: =IF(F12=F16,(F13-F15)/(12*AF2*(1+F12)^AF2),(F13-F15)*(F12-F16)/(12*(1+F12)*((1+F12)^(AF2)-(1+F16)^(AF2)))) -> 3429.897271 | H17: =IF(H12=H16,(H13-H15)/(12*AH2*(1+H12)^AH2),(H13-H15)*(H12-H16)/(12*(1+H12)*((1+H12)^(AH2)-(1+H16)^(AH2)))) -> 305.8938624 | J17: =IF(J12=J16,(J13-J15)/(12*AJ2*(1+J12)^AJ2),(J13-J15)*(J12-J16)/(12*(1+J12)*((1+J12)^(AJ2)-(1+J16)^(AJ2)))) -> 13033.86494
A18: =CONCATENATE(AA3,AB3,AD3) -> * that is less than 25 years

Sheet _SSC (hidden)
C1: {"IsHide":true,"SheetId":0,"Name":"Retirement","HiddenRow":0,"VisibleRange":"","SheetTheme":{"TabColor":"","BodyColor":"","BodyImage":""}} | D1: {"ButtonStyle":0,"Name":"","HideSscPoweredlogo":false,"LiveShare":{"Enable":true},"CopyProtect":{"IsEnabled":false,"DomainName":""},"Theme":{"BgColor":"#FFFFFFFF","BgImage":"","InputBorderStyle":2},"Layout":4,"LayoutConfig":{"IsSamePagesHeight":false},"SmartphoneSettings":{"ViewportLock":true,"UseOldViewEngine":false,"EnableZoom":false,"EnableSwipe":false,"HideToolbar":false,"InheritBackgroundColor":false,"CheckboxFlavor":1,"ShowBubble":false},"SmartphoneTheme":0,"InputDetection":0,"Toolbar":{"Position":1,"IsSubmit":true,"IsPrint":true,"IsPrintAll":false,"IsReset":true,"IsUpdate":true},"AspnetConfig":{"BrowseUrl":"http://localhost/ssc","FileExtension":0},"NodejsConfig":{"LocalPort":3000},"ConfigureSubmit":{"IsShowCaptcha":false,"IsUseSscWebServer":true,"ReceiverCode":"","IsFreeService":false,"IsAdvanceService":false,"IsDemonstrationService":true,"AfterSuccessfulSubmit":"","AfterFailSubmit":"","AfterCancelWizard":"","IsUseOwnWebServer":false,"OwnWebServerURL":"","OwnWebServerTarget":"","SubmitTarget":0},"Flavor":3,"Edition":0,"IgnoreBgInputCell":false} | E1: {"Captcha":{"Heading":"Enter the number displayed below.","Message":"This is to verify that you are a human visitor, to prevent automated form submissions.","OkButton":"OK","CancelButton":"Cancel","ErrorMessage":"Your answer is incorrect, please try again."},"RequiredField":{"ErrorMessage":"The fields with the red border are required.","OkButton":"OK","DDLDefaultRequiredText":"Please Select"},"WizardButton":{"Next":"Next","Previous":"Previous","Cancel":"Cancel","Finish":"Finish"},"ToolbarButton":{"Submit":"Submit","Print":"Print","PrintAll":"Print All","Reset":"Reset","Update":"Update","Back":"Back"},"BrowserAndLocation":{"Browsers":[{"Name":"iexplore.exe"},{"Name":"chrome.exe"}],"ConversionPath":"C:\\Users\\user\\Desktop\\freefincal"},"AdvancedSettingsModels":[],"Dropbox":{"AccessToken":"","AccessSecret":""},"SpreadsheetServer":{"Username":"","Password":"","ServerUrl":""},"ConfigureSubmitDefault":{"Email":""},"MessageBubble":{"Close":false,"TopMsg":0}}
C2: {"IsHide":true,"SheetId":0,"Name":"Other goals","HiddenRow":0,"VisibleRange":"","SheetTheme":{"TabColor":"","BodyColor":"","BodyImage":""}}
C3: {"IsHide":true,"SheetId":0,"Name":"summary","HiddenRow":0,"VisibleRange":"","SheetTheme":{"TabColor":"","BodyColor":"","BodyImage":""}}
C4: {"IsHide":true,"SheetId":0,"Name":"cashflow","HiddenRow":0,"VisibleRange":"","SheetTheme":{"TabColor":"","BodyColor":"","BodyImage":""}}
C5: {"IsHide":true,"SheetId":0,"Name":"Graphs","HiddenRow":0,"VisibleRange":"","SheetTheme":{"TabColor":"","BodyColor":"","BodyImage":""}}
C6: {"IsHide":true,"SheetId":0,"Name":"retirement-cashflow","HiddenRow":0,"VisibleRange":"","SheetTheme":{"TabColor":"","BodyColor":"","BodyImage":""}}
C7: {"IsHide":true,"SheetId":0,"Name":"Sheet1","HiddenRow":0,"VisibleRange":"","SheetTheme":{"TabColor":"","BodyColor":"","BodyImage":""}}

Sheet summary
A1: initial monthly investment required for
A2: Retirement | B2: =Retirement!B38 -> 17120.4916
A3: ='Other goals'!B1 -> Daughters education | B3: ='Other goals'!B17 -> 13762.36575
A4: ='Other goals'!F1 -> Daughters marriage | B4: ='Other goals'!D17 -> 12965.69118
A5: ='Other goals'!H1 -> Sons marriage | B5: ='Other goals'!F17 -> 3429.897271
A6: ='Other goals'!J1 -> Goal 5 | B6: ='Other goals'!H17 -> 305.8938624
A7: initial mon. invest. reqd. for goal 5 | B7: ='Other goals'!J17 -> 13033.86494
A8: Total investment reqd. for all goals | B8: =Retirement!B38+'Other goals'!B17+'Other goals'!D17+'Other goals'!F17+'Other goals'!H17+'Other goals'!J17 -> 60618.2046
A12: Expected return for unified portfolio | B12: 0.1
A13: Annual inc. in monthly invest. % | B13: 0.1
A15: Extra amt you can invest per month | C15: after | D15: 5 | E15: years
A16: Extra amt you can invest per month | C16: after | D16: 10 | E16: years
A22: Total initial monthly investment required for
A23: Multiple portfolios | B23: =summary!B8 -> 60618.2046
A24: Unified portfolio for long-term goals | B24: =invest -> 45489.21441
A25: A reduction of | B25: =IF(B24<B23,(B23-B24)/B23,"NA") -> 0.2495783286

Sheet cashflow
L1: 45489.21441 | M1: Year | N1: Mon. invest. | Q1: Add invest. | R1: Withdrawal | S1: Corpus
L2: =Retirement!B28 -> 70932266.34 | N2: investment | Q2: investment
L3: =Retirement!B9 -> 25 | M3: 1 | N3: =IF(M3=0,0,invest*(1+increment)^(M3-1)) -> 45489.21441 | O3: =IF(ISERROR(IF(M3="","",IF(M3=loany1,loansip1,IF(O2=loansip1,loansip1,0)))+IF(M3="","",IF(M3=loany2,loansip2,IF(P2=loansip2,loansip2,0)))),"",IF(M3="","",IF(M3=loany1,loansip1,IF(O2=loansip1,loansip1,0)))+IF(M3="","",IF(M3=loany2,loansip2,IF(P2=loansip2,loansip2,0)))) -> 0 | P3: =IF(M3="","",IF(M3=loany2,loansip2,IF(P2=loansip2,loansip2,0))) -> 0 | Q3: =IF(ISERROR(IF(M3=0,0,IF(M3=loany1,loansip1,IF(O2=loansip1,loansip1,0)))+IF(M3=0,0,IF(M3=loany2,loansip2,IF(P2=loansip2,loansip2,0)))),"",IF(M3=0,0,IF(M3=loany1,loansip1,IF(O2=loansip1,loansip1,0)))+IF(M3=0,0,IF(M3=loany2,loansip2,IF(P2=loansip2,loansip2,0)))) -> 0 | R3: =IF(M3=ygoal1,goal1,IF(M3=ygoal2,goal2,IF(M3=ygoal3,goal3,IF(M3=ygoal4,goal4,IF(M3=ygoal5,goal5,0))))) -> 0 | S3: =IF(M3=0,0,((N3+Q3)*12+(S2-R2))*(1+interest)) -> 600457.6303
M4: =IF(M3=$L$3,NA(),IF(M3=0,0,IF(M3>=$L$3,"",M3+1))) -> 2 | N4: 50038.13586 | O4: =IF(M4="","",IF(M4=loany1,loansip1,IF(O3=loansip1,loansip1,0))) -> 0 | P4: 0 | Q4: 0 | R4: 0 | S4: 1321006.787
M5: =IF(M4=$L$3,0,IF(M4=0,0,IF(M4>=$L$3,"",M4+1))) -> 3 | N5: 55041.94944 | O5: 0 | P5: 0 | Q5: 0 | R5: 0 | S5: 2179661.198
M6: 4 | N6: 60546.14439 | O6: 0 | P6: 0 | Q6: 0 | R6: 0 | S6: 3196836.424
M7: 5 | N7: 66600.75882 | O7: 0 | P7: 0 | Q7: 0 | R7: 0 | S7: 4395650.082
M8: 6 | N8: 73260.83471 | O8: 0 | P8: 0 | Q8: 0 | R8: 1771561 | S8: 5802258.109
M9: 7 | N9: 80586.91818 | O9: 0 | P9: 0 | Q9: 0 | R9: 0 | S9: 5497514.14
M10: 8 | N10: 88645.61 | O10: 0 | P10: 0 | Q10: 0 | R10: 0 | S10: 7217387.606
M11: 9 | N11: 97510.171 | O11: 0 | P11: 0 | Q11: 0 | R11: 0 | S11: 9226260.623
L12: =Retirement!B38 -> 17120.4916 | M12: 10 | N12: 107261.1881 | O12: 0 | P12: 0 | Q12: 0 | R12: 0 | S12: 11564734.37
M13: 11 | N13: 117987.3069 | O13: 0 | P13: 0 | Q13: 0 | R13: 0 | S13: 14278640.26
M14: 12 | N14: 129786.0376 | O14: 0 | P14: 0 | Q14: 0 | R14: 7846070.942 | S14: 17419679.98
M15: 13 | N15: 142764.6414 | O15: 0 | P15: 0 | Q15: 0 | R15: 0 | S15: 12415463.21
M16: 14 | N16: 157041.1055 | O16: 0 | P16: 0 | Q16: 0 | R16: 9493745.84 | S16: 15729952.12
M17: 15 | N17: 172745.216 | O17: 0 | P17: 0 | Q17: 0 | R17: 0 | S17: 9140063.759
M18: 16 | N18: 190019.7376 | O18: 0 | P18: 0 | Q18: 0 | R18: 0 | S18: 12562330.67
M19: 17 | N19: 209021.7114 | O19: 0 | P19: 0 | Q19: 0 | R19: 0 | S19: 16577650.33
M20: 18 | N20: 229923.8825 | O20: 0 | P20: 0 | Q20: 0 | R20: 0 | S20: 21270410.61
M21: 19 | N21: 252916.2708 | O21: 0 | P21: 0 | Q21: 0 | R21: 0 | S21: 26735946.45
M22: 20 | N22: 278207.8979 | O22: 0 | P22: 0 | Q22: 0 | R22: 6727499.949 | S22: 33081885.35
M23: 21 | N23: 306028.6877 | O23: 0 | P23: 0 | Q23: 0 | R23: 0 | S23: 33029402.61
M24: 22 | N24: 336631.5564 | O24: 0 | P24: 0 | Q24: 0 | R24: 814027.4939 | S24: 40775879.42
M25: 23 | N25: 370294.7121 | O25: 0 | P25: 0 | Q25: 0 | R25: 0 | S25: 48845927.32
M26: 24 | N26: 407324.1833 | O26: 0 | P26: 0 | Q26: 0 | R26: 0 | S26: 59107199.27
M27: 25 | N27: 448056.6016 | O27: 0 | P27: 0 | Q27: 0 | R27: 0 | S27: 70932266.34
M28: 0 | N28: 0 | O28: 0 | P28: 0 | Q28: 0 | R28: 0 | S28: 0
M29: 0 | N29: 0 | O29: 0 | P29: 0 | Q29: 0 | R29: 0 | S29: 0
M30: 0 | N30: 0 | O30: 0 | P30: 0 | Q30: 0 | R30: 0 | S30: 0
M31: 0 | N31: 0 | O31: 0 | P31: 0 | Q31: 0 | R31: 0 | S31: 0
M32: 0 | N32: 0 | O32: 0 | P32: 0 | Q32: 0 | R32: 0 | S32: 0
M33: 0 | N33: 0 | O33: 0 | P33: 0 | Q33: 0 | R33: 0 | S33: 0
M34: 0 | N34: 0 | O34: 0 | P34: 0 | Q34: 0 | R34: 0 | S34: 0
M35: 0 | N35: =IF(M35=0,0,invest*(1+increment)^(M35-1)) -> 0 | O35: 0 | P35: =IF(M35="","",IF(M35=loany2,loansip2,IF(P34=loansip2,loansip2,0))) -> 0 | Q35: =IF(ISERROR(IF(M35=0,0,IF(M35=loany1,loansip1,IF(O34=loansip1,loansip1,0)))+IF(M35=0,0,IF(M35=loany2,loansip2,IF(P34=loansip2,loansip2,0)))),"",IF(M35=0,0,IF(M35=loany1,loansip1,IF(O34=loansip1,loansip1,0)))+IF(M35=0,0,IF(M35=loany2,loansip2,IF(P34=loansip2,loansip2,0)))) -> 0 | R35: =IF(M35=ygoal1,goal1,IF(M35=ygoal2,goal2,IF(M35=ygoal3,goal3,IF(M35=ygoal4,goal4,IF(M35=ygoal5,goal5,0))))) -> 0 | S35: =IF(M35=0,0,((N35+Q35)*12+(S34-R34))*(1+interest)) -> 0
M36: 0 | N36: 0 | O36: =IF(M36="","",IF(M36=loany1,loansip1,IF(O35=loansip1,loansip1,0))) -> 0 | P36: 0 | Q36: 0 | R36: 0 | S36: 0
M37: =IF(M36=$L$3,0,IF(M36=0,0,IF(M36>=$L$3,"",M36+1))) -> 0 | N37: 0 | O37: 0 | P37: 0 | Q37: 0 | R37: 0 | S37: 0
M38: 0 | N38: 0 | O38: 0 | P38: 0 | Q38: 0 | R38: 0 | S38: 0
M39: 0 | N39: 0 | O39: 0 | P39: 0 | Q39: 0 | R39: 0 | S39: 0
M40: 0 | N40: 0 | O40: 0 | P40: 0 | Q40: 0 | R40: 0 | S40: 0
M41: 0 | N41: 0 | O41: 0 | P41: 0 | Q41: 0 | R41: 0 | S41: 0
M42: 0 | N42: 0 | O42: 0 | P42: 0 | Q42: 0 | R42: 0 | S42: 0
M43: 0 | N43: 0 | O43: 0 | P43: 0 | Q43: 0 | R43: 0 | S43: 0
M44: 0 | N44: 0 | O44: 0 | P44: 0 | Q44: 0 | R44: 0 | S44: 0
M45: 0 | N45: 0 | O45: 0 | P45: 0 | Q45: 0 | R45: 0 | S45: 0
M46: 0 | N46: 0 | O46: 0 | P46: 0 | Q46: 0 | R46: 0 | S46: 0
M47: 0 | N47: 0 | O47: 0 | P47: 0 | Q47: 0 | R47: 0 | S47: 0
M48: 0 | N48: 0 | O48: 0 | P48: 0 | Q48: 0 | R48: 0 | S48: 0
M49: 0 | N49: 0 | O49: 0 | P49: 0 | Q49: 0 | R49: 0 | S49: 0
M50: 0 | N50: 0 | O50: 0 | P50: 0 | Q50: 0 | R50: 0 | S50: 0
M51: 0 | N51: 0 | O51: 0 | P51: 0 | Q51: 0 | R51: 0 | S51: 0
M52: 0 | N52: 0 | O52: 0 | P52: 0 | Q52: 0 | R52: 0 | S52: 0
M53: 0 | N53: 0 | O53: 0 | P53: 0 | Q53: 0 | R53: 0 | S53: 0
M54: 0 | N54: 0 | O54: 0 | P54: 0 | Q54: 0 | R54: 0 | S54: 0
M55: 0 | N55: 0 | O55: 0 | P55: 0 | Q55: 0 | R55: 0 | S55: 0
M56: 0 | N56: 0 | O56: 0 | P56: 0 | Q56: 0 | R56: 0 | S56: 0
M57: 0 | N57: 0 | O57: 0 | P57: 0 | Q57: 0 | R57: 0 | S57: 0
M58: 0 | N58: 0 | O58: 0 | P58: 0 | Q58: 0 | R58: 0 | S58: 0
M59: 0 | N59: 0 | O59: 0 | P59: 0 | Q59: 0 | R59: 0 | S59: 0
M60: 0 | N60: 0 | O60: 0 | P60: 0 | Q60: 0 | R60: 0 | S60: 0
M61: 0 | N61: 0 | O61: 0 | P61: 0 | Q61: 0 | R61: 0 | S61: 0
M62: 0 | N62: 0 | O62: 0 | P62: 0 | Q62: 0 | R62: 0 | S62: 0
M63: 0 | N63: 0 | O63: 0 | P63: 0 | Q63: 0 | R63: 0 | S63: 0
M64: 0 | N64: 0 | O64: 0 | P64: 0 | Q64: 0 | R64: 0 | S64: 0
M65: 0 | N65: 0 | O65: 0 | P65: 0 | Q65: 0 | R65: 0 | S65: 0
M66: 0 | N66: 0 | O66: 0 | P66: 0 | Q66: 0 | R66: 0 | S66: 0
M67: 0 | N67: =IF(M67=0,0,invest*(1+increment)^(M67-1)) -> 0 | O67: 0 | P67: =IF(M67="","",IF(M67=loany2,loansip2,IF(P66=loansip2,loansip2,0))) -> 0 | Q67: =IF(ISERROR(IF(M67=0,0,IF(M67=loany1,loansip1,IF(O66=loansip1,loansip1,0)))+IF(M67=0,0,IF(M67=loany2,loansip2,IF(P66=loansip2,loansip2,0)))),"",IF(M67=0,0,IF(M67=loany1,loansip1,IF(O66=loansip1,loansip1,0)))+IF(M67=0,0,IF(M67=loany2,loansip2,IF(P66=loansip2,loansip2,0)))) -> 0 | R67: =IF(M67=ygoal1,goal1,IF(M67=ygoal2,goal2,IF(M67=ygoal3,goal3,IF(M67=ygoal4,goal4,IF(M67=ygoal5,goal5,0))))) -> 0 | S67: =IF(M67=0,0,((N67+Q67)*12+(S66-R66))*(1+interest)) -> 0
M68: 0 | N68: 0 | O68: =IF(M68="","",IF(M68=loany1,loansip1,IF(O67=loansip1,loansip1,0))) -> 0 | P68: 0 | Q68: 0 | R68: 0 | S68: 0
M69: =IF(M68=$L$3,0,IF(M68=0,0,IF(M68>=$L$3,"",M68+1))) -> 0 | N69: 0 | O69: 0 | P69: 0 | Q69: 0 | R69: 0 | S69: 0
M70: 0 | N70: 0 | O70: 0 | P70: 0 | Q70: 0 | R70: 0 | S70: 0
M71: 0 | N71: 0 | O71: 0 | P71: 0 | Q71: 0 | R71: 0 | S71: 0
M72: 0 | N72: 0 | O72: 0 | P72: 0 | Q72: 0 | R72: 0 | S72: 0
M73: 0 | N73: 0 | O73: 0 | P73: 0 | Q73: 0 | R73: 0 | S73: 0
M74: 0 | N74: 0 | O74: 0 | P74: 0 | Q74: 0 | R74: 0 | S74: 0
M75: 0 | N75: 0 | O75: 0 | P75: 0 | Q75: 0 | R75: 0 | S75: 0
M76: 0 | N76: 0 | O76: 0 | P76: 0 | Q76: 0 | R76: 0 | S76: 0
M77: 0 | N77: 0 | O77: 0 | P77: 0 | Q77: 0 | R77: 0 | S77: 0
M78: 0 | N78: 0 | O78: 0 | P78: 0 | Q78: 0 | R78: 0 | S78: 0
M79: 0 | N79: 0 | O79: 0 | P79: 0 | Q79: 0 | R79: 0 | S79: 0
M80: 0 | N80: 0 | O80: 0 | P80: 0 | Q80: 0 | R80: 0 | S80: 0
M81: 0 | N81: 0 | O81: 0 | P81: 0 | Q81: 0 | R81: 0 | S81: 0
M82: 0 | N82: 0 | O82: 0 | P82: 0 | Q82: 0 | R82: 0 | S82: 0
M83: 0 | N83: 0 | O83: 0 | P83: 0 | Q83: 0 | R83: 0 | S83: 0
M84: 0 | N84: 0 | O84: 0 | P84: 0 | Q84: 0 | R84: 0 | S84: 0
M85: 0 | N85: 0 | O85: 0 | P85: 0 | Q85: 0 | R85: 0 | S85: 0
M86: 0 | N86: 0 | O86: 0 | P86: 0 | Q86: 0 | R86: 0 | S86: 0
M87: 0 | N87: 0 | O87: 0 | P87: 0 | Q87: 0 | R87: 0 | S87: 0
M88: 0 | N88: 0 | O88: 0 | P88: 0 | Q88: 0 | R88: 0 | S88: 0
M89: 0 | N89: 0 | O89: 0 | P89: 0 | Q89: 0 | R89: 0 | S89: 0
M90: 0 | N90: 0 | O90: 0 | P90: 0 | Q90: 0 | R90: 0 | S90: 0
M91: 0 | N91: 0 | O91: 0 | P91: 0 | Q91: 0 | R91: 0 | S91: 0
M92: 0 | N92: 0 | O92: 0 | P92: 0 | Q92: 0 | R92: 0 | S92: 0
M93: 0 | N93: 0 | O93: 0 | P93: 0 | Q93: 0 | R93: 0 | S93: 0
M94: 0 | N94: 0 | O94: 0 | P94: 0 | Q94: 0 | R94: 0 | S94: 0
M95: 0 | N95: 0 | O95: 0 | P95: 0 | Q95: 0 | R95: 0 | S95: 0
M96: 0 | N96: 0 | O96: 0 | P96: 0 | Q96: 0 | R96: 0 | S96: 0
M97: 0 | N97: 0 | O97: 0 | P97: 0 | Q97: 0 | R97: 0 | S97: 0
M98: 0 | N98: 0 | O98: 0 | P98: 0 | Q98: 0 | R98: 0 | S98: 0
M99: 0 | N99: =IF(M99=0,0,invest*(1+increment)^(M99-1)) -> 0 | O99: 0 | P99: 0 | Q99: 0 | R99: 0 | S99: 0
M100: 0 | N100: 0 | O100: 0 | P100: 0 | Q100: 0 | R100: 0 | S100: 0

Sheet Graphs

Sheet retirement-cashflow (hidden)
A1: year | B1: year start corpus value | C1: Withdrawal | D1: year end corpus value
A2: 1 | B2: =Retirement!B15 -> 77851401.2 | C2: =Retirement!B10*12 -> 3561207.102 | D2: =(B2-C2)*(1+Retirement!$B$13/100) -> 80233409.62
A3: =IF(A2=Retirement!$B$11,NA(),A2+1) -> 2 | B3: =IF(A3>Retirement!$B$11,NA(),D2) -> 80233409.62 | C3: =IF(A3>Retirement!$B$11,NA(),C2*(1+Retirement!$B$12/100)) -> 3881715.741 | D3: =IF(A3>Retirement!$B$11,NA(),(B3-C3)*(1+Retirement!$B$13/100)) -> 82459829.39
A4: =IF(A3=Retirement!$B$11,NA(),A3+1) -> 3 | B4: =IF(A4>Retirement!$B$11,NA(),D3) -> 82459829.39 | C4: =IF(A4>Retirement!$B$11,NA(),C3*(1+Retirement!$B$12/100)) -> 4231070.158 | D4: =IF(A4>Retirement!$B$11,NA(),(B4-C4)*(1+Retirement!$B$13/100)) -> 84487059.97
A5: =IF(A4=Retirement!$B$11,NA(),A4+1) -> 4 | B5: =IF(A5>Retirement!$B$11,NA(),D4) -> 84487059.97 | C5: =IF(A5>Retirement!$B$11,NA(),C4*(1+Retirement!$B$12/100)) -> 4611866.472 | D5: =IF(A5>Retirement!$B$11,NA(),(B5-C5)*(1+Retirement!$B$13/100)) -> 86265208.98
A6: =IF(A5=Retirement!$B$11,NA(),A5+1) -> 5 | B6: =IF(A6>Retirement!$B$11,NA(),D5) -> 86265208.98 | C6: =IF(A6>Retirement!$B$11,NA(),C5*(1+Retirement!$B$12/100)) -> 5026934.455 | D6: =IF(A6>Retirement!$B$11,NA(),(B6-C6)*(1+Retirement!$B$13/100)) -> 87737336.49
A7: =IF(A6=Retirement!$B$11,NA(),A6+1) -> 6 | B7: =IF(A7>Retirement!$B$11,NA(),D6) -> 87737336.49 | C7: =IF(A7>Retirement!$B$11,NA(),C6*(1+Retirement!$B$12/100)) -> 5479358.556 | D7: =IF(A7>Retirement!$B$11,NA(),(B7-C7)*(1+Retirement!$B$13/100)) -> 88838616.17
A8: =IF(A7=Retirement!$B$11,NA(),A7+1) -> 7 | B8: =IF(A8>Retirement!$B$11,NA(),D7) -> 88838616.17 | C8: =IF(A8>Retirement!$B$11,NA(),C7*(1+Retirement!$B$12/100)) -> 5972500.826 | D8: =IF(A8>Retirement!$B$11,NA(),(B8-C8)*(1+Retirement!$B$13/100)) -> 89495404.57
A9: =IF(A8=Retirement!$B$11,NA(),A8+1) -> 8 | B9: =IF(A9>Retirement!$B$11,NA(),D8) -> 89495404.57 | C9: =IF(A9>Retirement!$B$11,NA(),C8*(1+Retirement!$B$12/100)) -> 6510025.9 | D9: =IF(A9>Retirement!$B$11,NA(),(B9-C9)*(1+Retirement!$B$13/100)) -> 89624208.96
A10: =IF(A9=Retirement!$B$11,NA(),A9+1) -> 9 | B10: =IF(A10>Retirement!$B$11,NA(),D9) -> 89624208.96 | C10: =IF(A10>Retirement!$B$11,NA(),C9*(1+Retirement!$B$12/100)) -> 7095928.231 | D10: =IF(A10>Retirement!$B$11,NA(),(B10-C10)*(1+Retirement!$B$13/100)) -> 89130543.19
A11: =IF(A10=Retirement!$B$11,NA(),A10+1) -> 10 | B11: =IF(A11>Retirement!$B$11,NA(),D10) -> 89130543.19 | C11: =IF(A11>Retirement!$B$11,NA(),C10*(1+Retirement!$B$12/100)) -> 7734561.772 | D11: =IF(A11>Retirement!$B$11,NA(),(B11-C11)*(1+Retirement!$B$13/100)) -> 87907659.93
A12: =IF(A11=Retirement!$B$11,NA(),A11+1) -> 11 | B12: =IF(A12>Retirement!$B$11,NA(),D11) -> 87907659.93 | C12: =IF(A12>Retirement!$B$11,NA(),C11*(1+Retirement!$B$12/100)) -> 8430672.331 | D12: =IF(A12>Retirement!$B$11,NA(),(B12-C12)*(1+Retirement!$B$13/100)) -> 85835146.61
A13: =IF(A12=Retirement!$B$11,NA(),A12+1) -> 12 | B13: =IF(A13>Retirement!$B$11,NA(),D12) -> 85835146.61 | C13: =IF(A13>Retirement!$B$11,NA(),C12*(1+Retirement!$B$12/100)) -> 9189432.841 | D13: =IF(A13>Retirement!$B$11,NA(),(B13-C13)*(1+Retirement!$B$13/100)) -> 82777370.87
A14: =IF(A13=Retirement!$B$11,NA(),A13+1) -> 13 | B14: =IF(A14>Retirement!$B$11,NA(),D13) -> 82777370.87 | C14: =IF(A14>Retirement!$B$11,NA(),C13*(1+Retirement!$B$12/100)) -> 10016481.8 | D14: =IF(A14>Retirement!$B$11,NA(),(B14-C14)*(1+Retirement!$B$13/100)) -> 78581760.2
A15: =IF(A14=Retirement!$B$11,NA(),A14+1) -> 14 | B15: =IF(A15>Retirement!$B$11,NA(),D14) -> 78581760.2 | C15: =IF(A15>Retirement!$B$11,NA(),C14*(1+Retirement!$B$12/100)) -> 10917965.16 | D15: =IF(A15>Retirement!$B$11,NA(),(B15-C15)*(1+Retirement!$B$13/100)) -> 73076898.64
A16: =IF(A15=Retirement!$B$11,NA(),A15+1) -> 15 | B16: =IF(A16>Retirement!$B$11,NA(),D15) -> 73076898.64 | C16: =IF(A16>Retirement!$B$11,NA(),C15*(1+Retirement!$B$12/100)) -> 11900582.02 | D16: =IF(A16>Retirement!$B$11,NA(),(B16-C16)*(1+Retirement!$B$13/100)) -> 66070421.95
A17: =IF(A16=Retirement!$B$11,NA(),A16+1) -> 16 | B17: =IF(A17>Retirement!$B$11,NA(),D16) -> 66070421.95 | C17: =IF(A17>Retirement!$B$11,NA(),C16*(1+Retirement!$B$12/100)) -> 12971634.4 | D17: =IF(A17>Retirement!$B$11,NA(),(B17-C17)*(1+Retirement!$B$13/100)) -> 57346690.55
A18: =IF(A17=Retirement!$B$11,NA(),A17+1) -> 17 | B18: =IF(A18>Retirement!$B$11,NA(),D17) -> 57346690.55 | C18: =IF(A18>Retirement!$B$11,NA(),C17*(1+Retirement!$B$12/100)) -> 14139081.5 | D18: =IF(A18>Retirement!$B$11,NA(),(B18-C18)*(1+Retirement!$B$13/100)) -> 46664217.77
A19: =IF(A18=Retirement!$B$11,NA(),A18+1) -> 18 | B19: =IF(A19>Retirement!$B$11,NA(),D18) -> 46664217.77 | C19: =IF(A19>Retirement!$B$11,NA(),C18*(1+Retirement!$B$12/100)) -> 15411598.84 | D19: =IF(A19>Retirement!$B$11,NA(),(B19-C19)*(1+Retirement!$B$13/100)) -> 33752828.45
A20: =IF(A19=Retirement!$B$11,NA(),A19+1) -> 19 | B20: =IF(A20>Retirement!$B$11,NA(),D19) -> 33752828.45 | C20: =IF(A20>Retirement!$B$11,NA(),C19*(1+Retirement!$B$12/100)) -> 16798642.73 | D20: =IF(A20>Retirement!$B$11,NA(),(B20-C20)*(1+Retirement!$B$13/100)) -> 18310520.58
A21: =IF(A20=Retirement!$B$11,NA(),A20+1) -> 20 | B21: =IF(A21>Retirement!$B$11,NA(),D20) -> 18310520.58 | C21: =IF(A21>Retirement!$B$11,NA(),C20*(1+Retirement!$B$12/100)) -> 18310520.58 | D21: =IF(A21>Retirement!$B$11,NA(),(B21-C21)*(1+Retirement!$B$13/100)) -> 9.977817535e-07
A22: =IF(A21=Retirement!$B$11,NA(),A21+1) ->  | B22: =IF(A22>Retirement!$B$11,NA(),D21) ->  | C22: =IF(A22>Retirement!$B$11,NA(),C21*(1+Retirement!$B$12/100)) ->  | D22: =IF(A22>Retirement!$B$11,NA(),(B22-C22)*(1+Retirement!$B$13/100)) -> 
A23: =IF(A22=Retirement!$B$11,NA(),A22+1) ->  | B23: =IF(A23>Retirement!$B$11,NA(),D22) ->  | C23: =IF(A23>Retirement!$B$11,NA(),C22*(1+Retirement!$B$12/100)) ->  | D23: =IF(A23>Retirement!$B$11,NA(),(B23-C23)*(1+Retirement!$B$13/100)) -> 
A24: =IF(A23=Retirement!$B$11,NA(),A23+1) ->  | B24: =IF(A24>Retirement!$B$11,NA(),D23) ->  | C24: =IF(A24>Retirement!$B$11,NA(),C23*(1+Retirement!$B$12/100)) ->  | D24: =IF(A24>Retirement!$B$11,NA(),(B24-C24)*(1+Retirement!$B$13/100)) -> 
A25: =IF(A24=Retirement!$B$11,NA(),A24+1) ->  | B25: =IF(A25>Retirement!$B$11,NA(),D24) ->  | C25: =IF(A25>Retirement!$B$11,NA(),C24*(1+Retirement!$B$12/100)) ->  | D25: =IF(A25>Retirement!$B$11,NA(),(B25-C25)*(1+Retirement!$B$13/100)) -> 
A26: =IF(A25=Retirement!$B$11,NA(),A25+1) ->  | B26: =IF(A26>Retirement!$B$11,NA(),D25) ->  | C26: =IF(A26>Retirement!$B$11,NA(),C25*(1+Retirement!$B$12/100)) ->  | D26: =IF(A26>Retirement!$B$11,NA(),(B26-C26)*(1+Retirement!$B$13/100)) -> 
A27: =IF(A26=Retirement!$B$11,NA(),A26+1) ->  | B27: =IF(A27>Retirement!$B$11,NA(),D26) ->  | C27: =IF(A27>Retirement!$B$11,NA(),C26*(1+Retirement!$B$12/100)) ->  | D27: =IF(A27>Retirement!$B$11,NA(),(B27-C27)*(1+Retirement!$B$13/100)) -> 
A28: =IF(A27=Retirement!$B$11,NA(),A27+1) ->  | B28: =IF(A28>Retirement!$B$11,NA(),D27) ->  | C28: =IF(A28>Retirement!$B$11,NA(),C27*(1+Retirement!$B$12/100)) ->  | D28: =IF(A28>Retirement!$B$11,NA(),(B28-C28)*(1+Retirement!$B$13/100)) -> 
A29: =IF(A28=Retirement!$B$11,NA(),A28+1) ->  | B29: =IF(A29>Retirement!$B$11,NA(),D28) ->  | C29: =IF(A29>Retirement!$B$11,NA(),C28*(1+Retirement!$B$12/100)) ->  | D29: =IF(A29>Retirement!$B$11,NA(),(B29-C29)*(1+Retirement!$B$13/100)) -> 
A30: =IF(A29=Retirement!$B$11,NA(),A29+1) ->  | B30: =IF(A30>Retirement!$B$11,NA(),D29) ->  | C30: =IF(A30>Retirement!$B$11,NA(),C29*(1+Retirement!$B$12/100)) ->  | D30: =IF(A30>Retirement!$B$11,NA(),(B30-C30)*(1+Retirement!$B$13/100)) -> 
A31: =IF(A30=Retirement!$B$11,NA(),A30+1) ->  | B31: =IF(A31>Retirement!$B$11,NA(),D30) ->  | C31: =IF(A31>Retirement!$B$11,NA(),C30*(1+Retirement!$B$12/100)) ->  | D31: =IF(A31>Retirement!$B$11,NA(),(B31-C31)*(1+Retirement!$B$13/100)) -> 
A32: =IF(A31=Retirement!$B$11,NA(),A31+1) ->  | B32: =IF(A32>Retirement!$B$11,NA(),D31) ->  | C32: =IF(A32>Retirement!$B$11,NA(),C31*(1+Retirement!$B$12/100)) ->  | D32: =IF(A32>Retirement!$B$11,NA(),(B32-C32)*(1+Retirement!$B$13/100)) -> 
A33: =IF(A32=Retirement!$B$11,NA(),A32+1) ->  | B33: =IF(A33>Retirement!$B$11,NA(),D32) ->  | C33: =IF(A33>Retirement!$B$11,NA(),C32*(1+Retirement!$B$12/100)) ->  | D33: =IF(A33>Retirement!$B$11,NA(),(B33-C33)*(1+Retirement!$B$13/100)) -> 
A34: =IF(A33=Retirement!$B$11,NA(),A33+1) ->  | B34: =IF(A34>Retirement!$B$11,NA(),D33) ->  | C34: =IF(A34>Retirement!$B$11,NA(),C33*(1+Retirement!$B$12/100)) ->  | D34: =IF(A34>Retirement!$B$11,NA(),(B34-C34)*(1+Retirement!$B$13/100)) -> 
A35: =IF(A34=Retirement!$B$11,NA(),A34+1) ->  | B35: =IF(A35>Retirement!$B$11,NA(),D34) ->  | C35: =IF(A35>Retirement!$B$11,NA(),C34*(1+Retirement!$B$12/100)) ->  | D35: =IF(A35>Retirement!$B$11,NA(),(B35-C35)*(1+Retirement!$B$13/100)) -> 
A36: =IF(A35=Retirement!$B$11,NA(),A35+1) ->  | B36: =IF(A36>Retirement!$B$11,NA(),D35) ->  | C36: =IF(A36>Retirement!$B$11,NA(),C35*(1+Retirement!$B$12/100)) ->  | D36: =IF(A36>Retirement!$B$11,NA(),(B36-C36)*(1+Retirement!$B$13/100)) -> 
A37: =IF(A36=Retirement!$B$11,NA(),A36+1) ->  | B37: =IF(A37>Retirement!$B$11,NA(),D36) ->  | C37: =IF(A37>Retirement!$B$11,NA(),C36*(1+Retirement!$B$12/100)) ->  | D37: =IF(A37>Retirement!$B$11,NA(),(B37-C37)*(1+Retirement!$B$13/100)) -> 

Sheet Keep short-term goals separate
A1: Enter name of the goal for your reference | B1: Goal 5
A2: Years to goal (has to be before retirement)* | B2: 6
A3: Present cost | B3: 1000000
A4: inflation | B4: 0.1
A5: Rate of return expected from portfolio | B5: 0.08
A6: Future Cost | B6: =B3*(1+B4)^B2 -> 1771561
A7: Amt invested so far | B7: 0
A8: RoI of current invest. | B8: 0.08
A9: Future value of curr. Inv. | B9: =B7*(1+B8)^AB2 -> 0
A10: Annual inc. in monthly invest. % | B10: 0.1
A11: initial mon. invest. reqd. | B11: =IF(B5=B10,(B6-B9)/(12*B2*(1+B5)^B2),(B6-B9)*(B5-B10)/(12*(1+B5)*((1+B5)^(B2)-(1+B10)^(B2)))) -> 14802.85679
A12: =CONCATENATE(AA3,AB3,AD3) -> 

Sheet Investment tracker
A1: Use this sheet to track investments made for retirement
A2: Annual increase in investment | E2: 0.1 | G2: Enter the total invement made each for this goal in the green cells
A3: S.no | B3: Year | C3: Investment
C4: Target | D4: Actual (average) | E4: Jan. | F4: Feb. | G4: Mar. | H4: Apr. | I4: May | J4: June | K4: July | L4: Aug | M4: Sep | N4: Oct | O4: Nov | P4: Dec.
A5: 1 | B5: =YEAR(TODAY()) -> 2016 | C5: 25000 | D5: =IF(ISERROR(SUM(E5:P5)/COUNT(E5:P5)),"",SUM(E5:P5)/COUNT(E5:P5)) -> 
A6: =IF(B6<>"",A5+1,"") -> 2 | B6: 2016 | C6: =IF(B6="","",C5*(1+$E$2)) -> 27500
A7: 3 | B7: 2017 | C7: 30250
A8: 4 | B8: 2018 | C8: 33275
A9: 5 | B9: 2019 | C9: 36602.5
A10: 6 | B10: 2020 | C10: 40262.75
A11: 7 | B11: 2021 | C11: 44289.025
A12: 8 | B12: 2022 | C12: 48717.9275
A13: 9 | B13: 2023 | C13: 53589.72025
A14: 10 | B14: 2024 | C14: 58948.69228
A15: 11 | B15: 2025 | C15: 64843.5615
A16: 12 | B16: 2026 | C16: 71327.91765
A17: 13 | B17: 2027 | C17: 78460.70942
A18: 14 | B18: 2028 | C18: 86306.78036
A19: 15 | B19: 2029 | C19: 94937.4584
A20: 16 | B20: 2030 | C20: 104431.2042
A21: 17 | B21: 2031 | C21: 114874.3247
A22: 18 | B22: 2032 | C22: 126361.7571
A23: 19 | B23: 2033 | C23: 138997.9328
A24: 20 | B24: 2034 | C24: 152897.7261
A25: 21 | B25: 2035 | C25: 168187.4987
A26: 22 | B26: 2036 | C26: 185006.2486
A27: 23 | B27: 2037 | C27: 203506.8735
A28: 24 | B28: 2038 | C28: 223857.5608
A29: 25 | B29: 2039 | C29: 246243.3169
D37: =IF(ISERROR(SUM(E37:P37)/COUNT(E37:P37)),"",SUM(E37:P37)/COUNT(E37:P37)) -> 
